Cogmind - Beta 17.1 @@@ ROGUE MODE // 2026.09.20 @ 09:22:58 Player: MrFartsburg Result: Destroyed by Y-45 Defender with Heavy Assault Rifle Performance ------------- Evolutions (1) 500 Regions Visited (3) 600 Robots Destroyed (17) 85 Value Destroyed (419) 419 Prototype IDs (2) 40 Alien Tech Used (0) 0 Bonus (0) 0 TOTAL SCORE: 1644 Bonus ------- None Cogmind --------- Core Integrity 0/400 Matter 244/300 Energy 100/100 System Corruption 0% Temperature Cool (9) Movement Core (200) Ox3 Location -9/Storage Parts ------- > --- POWER (2) -------- (None) > --- PROPULSION (2) --- (None) > --- UTILITY (3) ------ Medium Storage Unit Signal Interpreter > --- WEAPON (2) ------- (None) > --- INVENTORY (10) --- Signal Interpreter Targeting Computer Peak State ------------ > --- POWER ------------ Ion Engine > --- PROPULSION ------- Light Treads Light Treads > --- UTILITY ---------- Improved Heat Sink Medium Storage Unit Signal Interpreter > --- WEAPON ----------- Beam Rifle Spread Laser > --- INVENTORY -------- Signal Interpreter Targeting Computer Drone Bay Light Assault Rifle Heavy Assault Rifle [Rating: 13] Favorites ----------- Power Light Ion Engine Engine Light Ion Engine Propulsion Light Treads Treads Light Treads Leg Aluminum Leg Utility Medium Storage Unit Device Improved Heat Sink Storage Medium Storage Unit Processor Signal Interpreter Protection Power Shielding Weapon Spread Laser Energy Gun Spread Laser Ballistic Gun Shotgun Launcher Mini Grenade Launcher Special Weapon Mining Laser Build | -11 -10 -9 -9 ------- Run | Yrd Mat Mat Sto Slots Evolved 2 | . . 2 . Power 1 | . . 1 . Propulsion . | . . . . Utility 1 | . . 1 . Weapon . | . . . . Parts Attached 26 | 5 8 5 8 Power 4 | 1 1 1 1 Engine 4 | 1 1 1 1 Core . | . . . . Reactor . | . . . . Propulsion 6 | 2 2 . 2 Treads 4 | 2 . . 2 Leg 2 | . 2 . . Wheel . | . . . . Hover . | . . . . Flight . | . . . . Utility 6 | . 3 2 1 Device 2 | . 1 . 1 Storage 1 | . 1 . . Processor 2 | . . 2 . Hackware . | . . . . Protection 1 | . 1 . . Artifact . | . . . . Weapon 10 | 2 2 2 4 Energy Gun 3 | 1 . 1 1 Energy Cannon . | . . . . Ballistic Gun 4 | 1 1 1 1 Ballistic Cannon . | . . . . Launcher 1 | . . . 1 Special Weapon 2 | . 1 . 1 Impact Weapon . | . . . . Slashing Weapon . | . . . . Piercing Weapon . | . . . . Special Melee Weapon . | . . . . Unidentified Prototypes . | . . . . Parts Lost 21 | . 5 . 16 Power 4 | . 1 . 3 Propulsion 5 | . 2 . 3 Utility 3 | . . . 3 Weapon 9 | . 2 . 7 Highest Loss Streak 8 | . 5 . 8 To Critical Strikes . | . . . . Average Backups 5 | 1 2 4 6 Power . | . . . . Propulsion . | . . . . Utility 2 | . 1 3 3 Weapon 1 | . 1 1 2 Tool/Special . | . . . . Unused Backups 2 | . . . 2 Power . | . . . . Propulsion . | . . . . Utility 2 | . . . 2 Weapon . | . . . . Tool/Special . | . . . . Average Slot Usage (%) 91 | . 86 98 90 Engine 17 | . 14 20 16 Treads 11 | . 19 . 13 Leg 9 | . 3 22 7 Device 1 | . 3 . 1 Storage 11 | . 12 11 11 Processor 8 | . . 10 11 Protection 8 | . 5 11 7 Energy Gun 11 | . 9 9 13 Ballistic Gun 7 | . 13 12 3 Launcher 2 | . . . 4 Peak Build Rating 13 | 5 9 11 13 Average Rating 9 | 4 6 10 11 On Entrance 5 | . 5 7 11 Avg Prop Armor Cover (%) . | . . . . Naked Turns . | . . . . Heaviest Build 25 | 6 19 25 25 Greatest Support 40 | 40 40 20 40 Greatest Overweight (x) 6 | . 6 1 4 Average Overweight (x) . | . . 1 . Largest Inventory Capacity 10 | 5 10 10 10 Average Capacity 9 | 5 9 10 10 Most Carried 8 | 2 6 7 8 Average Carried 5 | 1 2 4 6 Final Capacity 10 | 5 10 10 10 Final Carried 7 | 2 6 7 2 Class Distribution -------------------- 93% | Mutant 6% | Scavenger-Mutant Dominant Class ---------------- Mutant | -10/Materials Mutant | -9/Materials Mutant | -9/Storage Resources | -11 -10 -9 -9 ----------- Run | Yrd Mat Mat Sto Matter Collected 441 | 202 136 . 103 Remotely . | . . . . Salvage Created 462 | . 268 . 194 Parts 36 | . 16 . 20 Haulers Intercepted 2 | . 1 . 1 Recyclers Shooed . | . . . . Parts Field Recycled . | . . . . Retrieved Matter . | . . . . Parts Self-Destructed . | . . . . Prevented . | . . . . Parts Restored . | . . . . Kills | -11 -10 -9 -9 ------- Run | Yrd Mat Mat Sto Combat Hostiles Destroyed 12 | . 7 . 5 Guns 10 | . 6 . 4 AOE 2 | . 1 . 1 Classes Destroyed 5 | . 4 . 1 Worker 3 | . 1 . 2 Hauler 2 | . 1 . 1 Swarmer 3 | . 3 . . Grunt 6 | . 4 . 2 Sentry 3 | . . . 3 Best Kill Streak 6 | . 6 . 3 Combat Bots Only 5 | . 5 . 2 Max Kills in Single Turn 2 | . 2 . 2 Gunslinging . | . . . . Exploded 1 | . 1 . 1 Melee . | . . . . Uniques/NPCs Destroyed . | . . . . Combat | -11 -10 -9 -9 -------- Run | Yrd Mat Mat Sto Hostile Shots Fired 223 | . 83 2 138 Missed 46 | . 15 1 30 Hits 177 | . 68 1 108 Projectile 177 | . 68 1 108 Critical Strikes 7 | . 3 . 4 Actively Blocked 1 | . . . 1 Damage Taken 2319 | . 720 11 1588 Core 567 | . 160 11 396 Absorbed by Shields . | . . . . Redirected to Shielding 52 | . 10 . 42 Regen/Repaired (Parts) 34 | . . 34 . Core Remaining (%) 68 | 100 36 . . Volleys Fired 41 | . 25 . 16 Largest 2 | . 2 . 2 Hottest 121 | . 60 . 121 Shots Fired 62 | . 33 . 29 Gun 55 | . 33 . 22 Cannon . | . . . . Launcher 7 | . . . 7 Special . | . . . . Kinetic 24 | . 19 . 5 Thermal 17 | . . . 17 Explosive 7 | . . . 7 Electromagnetic 14 | . 14 . . Robot Hit Streak 13 | . 13 . 8 Robot Miss Streak 2 | . 2 . 2 Penetration Max . | . . . . Secondary Targets 2 | . 1 . 1 Max Gunslinging Chain 1 | . 1 . 1 Shots Hit Robots 41 | . 23 . 18 Core Hits 37 | . 16 . 21 Critical Kills . | . . . . Critical Parts Destroyed . | . . . . Critical Strikes . | . . . . Melee Attacks . | . . . . Impact . | . . . . Slashing . | . . . . Piercing . | . . . . Sneak Attacks . | . . . . Combat Hostiles . | . . . . Follow-up Attacks . | . . . . Damage Inflicted 1029 | . 437 . 592 Guns 457 | . 244 . 213 Cannons . | . . . . Explosions 564 | . 191 . 373 Melee . | . . . . Ramming 8 | . 2 . 6 Kinetic 166 | . 126 . 40 Thermal 364 | . 191 . 173 Explosive 373 | . . . 373 Electromagnetic 118 | . 118 . . Impact . | . . . . Slashing . | . . . . Piercing . | . . . . Highest Corruption . | . . . . Average Corruption . | . . . . Corruption Purged . | . . . . Corruption Blocked . | . . . . Overload Shots . | . . . . Overflow Damage 23 | . 8 . 15 Projectiles . | . . . . Explosions 23 | . 8 . 15 Melee . | . . . . Knockbacks . | . . . . Impact . | . . . . Kinetic . | . . . . Secondary . | . . . . Self-Inflicted Damage 195 | . 77 . 118 Shots 6 | . 2 . 4 Rammed 2 | . 1 . 1 Targets Rammed 3 | . 1 . 2 Kicked . | . . . . Crushed 1 | . . . 1 Highest Temperature 271 | . 119 . 271 Average Temperature 86 | . 59 . 97 Received Heat Transfer 780 | . 216 6 558 Siege Activations . | . . . . Martial Activations . | . . . . Shielding Activations . | . . . . Robots Disrupted . | . . . . Combat Hostiles . | . . . . Robots Corrupted . | . . . . Combat Hostiles . | . . . . Parts Fried . | . . . . Impact Corruptions . | . . . . Robots Melted . | . . . . Combat Hostiles . | . . . . Parts Melted . | . . . . Heat Transferred 527 | . 300 . 227 Parts Sabotaged . | . . . . Parts Stolen . | . . . . Parts Stripped . | . . . . Power Chain Reactions 2 | . 2 . . Alert | -11 -10 -9 -9 ------- Run | Yrd Mat Mat Sto Maximum Alert Level . | . . . . Low Security (%) 100 | 100 100 100 100 Level 1 . | . . . . Level 2 . | . . . . Level 3 . | . . . . Level 4 . | . . . . Level 5 . | . . . . High Security . | . . . . Max Security . | . . . . Peak Influence 108 | . 105 35 108 Initial 35 | . . 35 . Average 23 | . 40 6 26 Influence Increases 438 | . 216 5 217 Destroy 0b10 Robot/C 240 | . 140 . 100 Destroy 0b10 Robot/NC 30 | . 10 . 20 Destroy Leader 64 | . 32 . 32 Successful Hack 5 | . . 5 . Disable Machine 45 | . 30 . 15 Destroy Structure 39 | . 4 . 35 Lose Combat Pursuer 15 | . . . 15 Influence Decreases 438 | . 131 90 217 Entered New Map 50 | . . 50 . Time Decay 283 | . 84 40 159 Lost Part 105 | . 47 . 58 Squads Dispatched 4 | . 1 1 2 Investigation . | . . . . Extermination . | . . . . Reinforcement 4 | . 1 1 2 Assault . | . . . . Garrison . | . . . . Intercept . | . . . . Searches Triggered . | . . . . Construction Impeded . | . . . . Haulers Reinforced . | . . . . Active Scanning Responses . | . . . . Cargo Convoy Interrupts . | . . . . Stealth | -11 -10 -9 -9 --------- Run | Yrd Mat Mat Sto Distress Signals 2 | . . . 2 Communications Jammed . | . . . . Distress Signals . | . . . . Times Spotted 29 | . 8 2 19 Peak Tracking Total 11 | . 6 1 11 Tactical Retreats 1 | . . . 1 Traps | -11 -10 -9 -9 ------- Run | Yrd Mat Mat Sto Traps Triggered 1 | . . . 1 Indirectly . | . . . . Trap Hack Attempts . | . . . . Triggered . | . . . . Disarmed . | . . . . Reprogrammed . | . . . . Reused . | . . . . Traps Extracted . | . . . . Installed . | . . . . Triggered . | . . . . Machines | -11 -10 -9 -9 ---------- Run | Yrd Mat Mat Sto Machines Disabled 3 | . 2 . 1 Max in Single Turn 2 | . 2 . 1 Machines Repaired . | . . . . Machines Dismantled . | . . . . Machines Sabotaged . | . . . . Overloaded Fab Kills . | . . . . Hacking | -11 -10 -9 -9 --------- Run | Yrd Mat Mat Sto Machines Accessed 5 | . . 3 2 Terminals 2 | . . 1 1 Fabricators . | . . . . Repair Stations 1 | . . 1 . Recycling Units 1 | . . . 1 Scanalyzers 1 | . . 1 . Garrison Access . | . . . . Total Hacks 11 | . . 8 3 Successful 8 | . . 6 2 Failed 2 | . . 1 1 Catastrophic . | . . . . Database Lockouts 1 | . . 1 . Manual . | . . . . Terminals 2 | . . 1 1 Fabricators . | . . . . Repair Stations 3 | . . 3 . Recycling Units 2 | . . . 2 Scanalyzers 4 | . . 4 . Garrison Access . | . . . . Terminal Hacks 2 | . . 1 1 Prototype ID Bank 1 | . . 1 . Open Door 1 | . . . 1 Fabricator Hacks . | . . . . Repair Station Hacks 3 | . . 3 . Scan Component 2 | . . 2 . Repair 1 | . . 1 . Recycling Unit Hacks 1 | . . . 1 Process 1 | . . . 1 Scanalyzer 2 | . . 2 . Retrieve Study 2 | . . 2 . Garrison Access Hacks . | . . . . Unauthorized Hacks . | . . . . Terminals . | . . . . Fabricators . | . . . . Repair Stations . | . . . . Recycling Units . | . . . . Scanalyzers . | . . . . Garrison Access . | . . . . Data Cores Recovered . | . . . . Used . | . . . . Hacking Detections 3 | . . 1 2 Full Trace Events . | . . . . Feedback Events . | . . . . Feedback Blocked . | . . . . Robot Schematics Acquired . | . . . . Robots Built . | . . . . Authchips . | . . . . Time . | . . . . Total Robot Build Rating . | . . . . Part Schematics Acquired . | . . . . Parts Built . | . . . . Authchips . | . . . . Time . | . . . . Total Part Build Rating . | . . . . Part Studies Acquired 2 | . . 2 . Parts Repaired 1 | . . 1 . Time 26 | . . 26 . Parts Recycled . | . . . . Recycled Matter 103 | . . . 103 Retrieved Matter . | . . . . Retrieved Components . | . . . . Parts Scanalyzed . | . . . . Part Schematics Acquired . | . . . . Parts Damaged . | . . . . Bothacking | -11 -10 -9 -9 ------------ Run | Yrd Mat Mat Sto Used RIF Installer . | . . . . Robots Hacked . | . . . . Non-combat . | . . . . Combat . | . . . . Robot Hacks Applied . | . . . . Relay Couplers Released . | . . . . Fabnet Peak Effective % . | . . . . Robots Rewired . | . . . . Allies Hacked . | . . . . Hacks Repelled . | . . . . Allies | -11 -10 -9 -9 -------- Run | Yrd Mat Mat Sto Total Allies . | . . . . Largest Group . | . . . . Highest-Rated Group . | . . . . Highest-Rated Ally . | . . . . Total Orders . | . . . . Ally Attacks . | . . . . Total Damage . | . . . . Kills . | . . . . Allies Corrupted . | . . . . Allies Melted . | . . . . Intel | -11 -10 -9 -9 ------- Run | Yrd Mat Mat Sto Active Infowar (turns) . | . . . . Robot Analysis Total . | . . . . Derelict Logs Recovered . | . . . . Drone Launches 2 | . . . 2 Drone Recoveries . | . . . . Exploration | -11 -10 -9 -9 ------------- Run | Yrd Mat Mat Sto Turns Passed 1118 | 63 210 244 601 Spaces Moved 540 | 38 85 111 306 Core 15 | 6 4 . 5 Treads 302 | 32 58 . 212 Legs 223 | . 23 111 89 Wheels . | . . . . Hover . | . . . . Flight . | . . . . Fastest Speed 50 | 50 120 175 160 Average Speed 169 | 142 158 186 169 Slowest Speed 350 | 160 350 190 250 Overloaded Moves . | . . . . Propulsion Burnouts . | . . . . Robots Hopped . | . . . . Potential Cave-ins . | . . . . Cave-ins Triggered . | . . . . Exploration Rate (%) 23 | 3 20 15 56 Regions Visited 3 Branch Regions 1 Pre-discovered Areas . | . . . . Known Exits Taken 1 | . . 1 . Unknown Exits Taken 2 | 1 1 . . Scrap Searched . | . . . . Spaces Dug . | . . . . Terrain Destroyed 43 | . 3 . 40 Melee . | . . . . Projectile . | . . . . AOE 43 | . 3 . 40 Terrain Rammed . | . . . . Walls Destroyed . | . . . . Machines Disabled . | . . . . Actions | -11 -10 -9 -9 --------- Run | Yrd Mat Mat Sto Total 677 | 44 127 146 360 Wait 43 | . 1 26 16 Move 537 | 37 84 110 306 Hop . | . . . . Pick Up 18 | 2 7 4 5 Fast Attach 11 | 5 4 1 1 Attach 13 | . 3 2 8 Detach . | . . . . Swap 6 | . 2 3 1 Drop 2 | . . . 2 Fire 41 | . 25 . 16 Melee . | . . . . Ram . | . . . . Kick . | . . . . Crush 3 | . 1 . 2 Escape Stasis . | . . . . Rewire 3 | . . . 3 Trap . | . . . . Miscellaneous . | . . . . Route ------- -11/Scrapyard -10/Materials -9/Materials -9/Storage (discovered 1 exit: [*Mat]) History --------- Turn | Location | Event 41 | -11/Scrapyard | Discovered new exit (range 12) 64 | -11/Scrapyard | Entered Materials 193 | -10/Materials | Discovered new exit (range 12) 212 | -10/Materials | Core integrity fell below 50% 240 | -10/Materials | Lost 5 parts (1p2n2w) 274 | -10/Materials | Entered another Materials area 274 | -9/Materials | Evolved 2 slots: Power x1, Utility x1 330 | -9/Materials | Build established: Mutant 343 | -9/Materials | Repaired Ion Engine 476 | -9/Materials | Central database locked down 492 | -9/Materials | Discovered new exit (range 15) 516 | -9/Materials | Identified exit to Storage 518 | -9/Materials | Entered Storage 705 | -9/Storage | Lost 3 parts (1n2w) 968 | -9/Storage | Lost 4 parts (2p1u1w) 1100 | -9/Storage | Core integrity fell below 50% 1117 | -9/Storage | Core integrity fell below 20% 1117 | -9/Storage | Discovered new exit (range 8) 1119 | -9/Storage | Destroyed by Y-45 Defender with Heavy Assault Rifle Last Messages --------------- reinforcements to Terminal S005. Ion Engine destroyed. K-01 Serf cleans the Terminal. W-16 Scout sends out distress signal. Beam Rifle destroyed. Lgt. Treads destroyed. Critical hit (Burn: +37). Imp. Heat Sink destroyed. Spread Laser+ destroyed. Drone released from Drone Bay. You have a new controllable ally. Review and give out orders from the Allies menu (F5). Drone released from Drone Bay. Drone Bay destroyed. Critical hit (Burn: +37). >> Lost connection to Drone. Lgt. Assault Rifle destroyed. Drone destroyed. EXIT=FOUND Hvy. Assault Rifle destroyed. Map ----- +----------------------------------------------------+ | ##+######## #?????????###?????????? | | # ## #####???? #?????????? | | # ## #"""#??? #?????????? | | # """" ## #"T"###? ??????????? | | # "??" # # ???????????? | | # "??" +% = # ????????????? | | # "??" # + ??????????????? | | # "??" # ^ #???????????????? | | # """" # #???????????????? | | # # +???????????????? | | ###/###+## #???????????????? | | ### ##????????#?????? | | | #??????? #?????? | | ###+##+####"T"## #??????? #?????? | | #?###### #??????? #?????? | | """""" #??????# #??????? #?????? | | "????" #??????##+#######?? #?????? | | "????" #??????# #?? #?????? | | """""" #??????# """ #?? #?????? | | #??????# T" #?? #?????? | | #??????# """ ## #?????? | | #??????# # #?????? | | #??????# %% ## #?????? | | #########??????#+###/##### #?????? | | #?????#""" # g Y r #?????? | | " #?????#""" + Y Y @ #?????? | | " #?????#""" # g Y #?????? | | " #?????# #####g##### #?????? | | #?????#""" ????? ??? + "??? | | #?????#""? ???? """ ?? # ""?? | | #?????#"?" ???? """ ? #?? ?? | | #??????? ????? """ #? #?????? | | #???????#+????# #?< #?????? | | ###### #??????# """ #? #?????? | | T ????/ """ #?###?????? | | ###### #??????# ?????#?????????? | | ????????????????# ???????????????? | | ????????????????####???????????????? | | ???????????????????????????????????? | | ???????????????????????????????????? | | ???????????????????????????????????? | | ???????????????????????????????????? | | | | | | | | | | | | | | | | | +----------------------------------------------------+ Best States ------------- Heat Dissipation 42 Energy Generation 15 Energy Capacity 275 Matter Stores 300 Matter Capacity 300 Sight Range 16 Terrain Scan Density 10 Power Shielding 33 Evasion (%) 55 Recoil Reduction 2 Item Schematics ----------------- None Robot Schematics ------------------ None Fabricated ------------ Nothing Repaired ---------- Ion Engine | 43% | -9/Materials Studied --------- Aluminum Leg | -9/Materials | Hacked Spread Laser | -9/Materials | Hacked Alien Tech Used ----------------- None Achievements -------------- None Challenges ------------ None Game ------ Seed LaserMissileShifter Manual? 0 Play Time 00:15:35 Cumulative 40.3 hours Start 2026.09.20 @ 08:53:09 End 2026.09.20 @ 09:22:58 Sessions 1 Manual Loads 0 Difficulty Rogue Special Mode None Game No. 78 Rogue 78 Adventurer 0 Explorer 0 Win Type - Total 0 Types 0/0/0/0/0/0/0/0/0/0 Lore% 13 Gallery% 25 Achievement% 17 Wizard Run 0 Options --------- Layout 1 ASCII 0 Keyboard 0 Movement Numpad Keybinds 0 Fullscreen 1 Font 32/SmallcapsGlow Map View 50x35 Zoom Use 0% Tactical HUD 0 Map Filters NONE Filters NONE Steam 1 RUN: 9dda8707-fd66-40b2-b647-0797ef05d049